Workbook

Sheet Sheet1
B1: Sample | C1: 40Ar | F1: K | G1: 40Ar | I1: Half Life | J1: t/(ln(2)) | K1: Age | L1: K | M1: Million Years
B2: 1 | C2: 11520 | D2: =(G2 /0.109) -> 1.056880734e-13 | E2: =(F2 + D2)/F2 -> 1.002197257 | F2: =L2 * (10 ^ -12) -> 4.81e-11 | G2: =(C2 * (10 ^-18)) -> 1.152e-14 | H2: =LN(E2) -> 0.002194846804 | I2: =(1.277) * (10 ^ 9) -> 1277000000 | J2: =I2/(LN(2)) -> 1842321567 | K2: =(J2 * H2) -> 4043613.603 | L2: 48.1 | M2: =(K2/1000) -> 4043.613603 | N2: 3 | O2: 926 | P2: 6 | Q2: 43
B3: 2 | C3: 21934 | D3: =(G3 /0.109) -> 2.012293578e-13 | E3: =(F3 + D3)/F3 -> 1.004098358 | F3: 4.91e-11 | G3: =(C3 * (10 ^-18)) -> 2.1934e-14 | H3: =LN(E3) -> 0.004089982201 | I3: =(1.277) * (10 ^ 9) -> 1277000000 | J3: =I3/(LN(2)) -> 1842321567 | K3: =(J3 * H3) -> 7535062.418 | L3: 49.1 | M3: =(K3/1000) -> 7535.062418 | N3: 2.1 | O3: 674 | P3: 6 | Q3: 132
B4: 3 | C4: 4749 | D4: 4.356880734e-14 | E4: 1.001749751 | F4: 2.49e-11 | G4: 4.749e-15 | H4: 0.001748222267 | I4: 1277000000 | J4: 1842321567 | K4: 3220787.587 | L4: 24.9 | M4: 3220.787587 | N4: 1.8 | O4: 990 | P4: 6 | Q4: 137
B5: 4 | C5: 2566 | D5: 2.35412844e-14 | E5: 1.003224833 | F5: 7.3e-12 | G5: 2.566e-15 | H5: 0.003219644856 | I5: 1277000000 | J5: 1842321567 | K5: 5931621.158 | L5: 7.3 | M5: 5931.621158 | N5: 0.6 | O5: 1003 | P5: 6 | Q5: 160
B6: 5 | C6: 4699 | D6: 4.311009174e-14 | E6: 1.001774078 | F6: 2.43e-11 | G6: 4.699e-15 | H6: 0.001772506032 | I6: 1277000000 | J6: 1842321567 | K6: 3265526.091 | L6: 24.3 | M6: 3265.526091 | N6: 1.9 | O6: 815 | P6: 6 | Q6: 90
B7: 6 | C7: 3830 | D7: 3.513761468e-14 | E7: 1.005092408 | F7: 6.9e-12 | G7: 3.83e-15 | H7: 0.005079485468 | I7: 1277000000 | J7: 1842321567 | K7: 9358045.627 | L7: 6.9 | M7: 9358.045627 | N7: 5.2 | O7: 497 | P7: 6 | Q7: 239
B8: 7 | C8: 4280 | D8: 3.926605505e-14 | E8: 1.001878759 | F8: 2.09e-11 | G8: 4.28e-15 | H8: 0.001876995955 | I8: 1277000000 | J8: 1842321567 | K8: 3458030.13 | L8: 20.9 | M8: 3458.03013 | N8: 1.5 | O8: 872 | P8: 6 | Q8: 172
B9: 8 | C9: 10005 | D9: 9.178899083e-14 | E9: 1.002306256 | F9: 3.98e-11 | G9: 1.0005e-14 | H9: 0.002303600724 | I9: 1277000000 | J9: 1842321567 | K9: 4243973.296 | L9: 39.8 | M9: 4243.973296 | N9: 1.5 | O9: 957 | P9: 6 | Q9: 110
B10: 9 | C10: 4367 | D10: 4.006422018e-14 | E10: 1.001655546 | F10: 2.42e-11 | G10: 4.367e-15 | H10: 0.001654177382 | I10: 1277000000 | J10: 1842321567 | K10: 3047526.668 | L10: 24.2 | M10: 3047.526668 | N10: 1.7 | O10: 960 | P10: 6 | Q10: 118
B11: 10 | C11: 3474 | D11: 3.187155963e-14 | E11: 1.001668668 | F11: 1.91e-11 | G11: 3.474e-15 | H11: 0.001667277364 | I11: 1277000000 | J11: 1842321567 | K11: 3071661.046 | L11: 19.1 | M11: 3071.661046 | N11: 2.6 | O11: 1118 | P11: 6 | Q11: 189
B12: 11 | C12: 8419 | D12: 7.723853211e-14 | E12: 1.002027258 | F12: 3.81e-11 | G12: 8.419e-15 | H12: 0.002025205946 | I12: 1277000000 | J12: 1842321567 | K12: 3731080.592 | L12: 38.1 | M12: 3731.080592 | N12: 1.9 | O12: 1249 | P12: 6 | Q12: 172
B13: 12 | C13: 5772 | D13: 5.295412844e-14 | E13: 1.002188187 | F13: 2.42e-11 | G13: 5.772e-15 | H13: 0.002185796531 | I13: 1277000000 | J13: 1842321567 | K13: 4026940.09 | L13: 24.2 | M13: 4026.94009 | N13: 2.9 | O13: 719 | P13: 6 | Q13: 36
B14: 13 | C14: 11181 | D14: 1.025779817e-13 | E14: 1.002914147 | F14: 3.52e-11 | G14: 1.1181e-14 | H14: 0.00290990931 | I14: 1277000000 | J14: 1842321567 | K14: 5360988.681 | L14: 35.2 | M14: 5360.988681 | N14: 2.2 | O14: 876 | P14: 6 | Q14: 69
B15: 14 | C15: 5499 | D15: 5.044954128e-14 | E15: 1.001519564 | F15: 3.32e-11 | G15: 5.499e-15 | H15: 0.001518411127 | I15: 1277000000 | J15: 1842321567 | K15: 2797401.567 | L15: 33.2 | M15: 2797.401567 | N15: 2.1 | O15: 920 | P15: 6 | Q15: 54
B16: 15 | C16: 2179 | D16: 1.999082569e-14 | E16: 1.001738333 | F16: 1.15e-11 | G16: 2.179e-15 | H16: 0.001736823517 | I16: 1277000000 | J16: 1842321567 | K16: 3199787.424 | L16: 11.5 | M16: 3199.787424 | N16: 1.5 | O16: 648 | P16: 6 | Q16: 172
B17: 16 | C17: 9728 | D17: 8.924770642e-14 | E17: 1.001957187 | F17: 4.56e-11 | G17: 9.728e-15 | H17: 0.00195527375 | I17: 1277000000 | J17: 1842321567 | K17: 3602243 | L17: 45.6 | M17: 3602.243 | N17: 4.4 | O17: 901 | P17: 6 | Q17: 59
B18: 17 | C18: 7660 | D18: 7.027522936e-14 | E18: 1.00167322 | F18: 4.2e-11 | G18: 7.66e-15 | H18: 0.001671821474 | I18: 1277000000 | J18: 1842321567 | K18: 3080032.758 | L18: 42 | M18: 3080.032758 | N18: 2.2 | O18: 993 | P18: 6 | Q18: 48
B19: 18 | C19: 7518 | D19: 6.897247706e-14 | E19: 1.001724312 | F19: 4e-11 | G19: 7.518e-15 | H19: 0.001722827008 | I19: 1277000000 | J19: 1842321567 | K19: 3174001.353 | L19: 40 | M19: 3174.001353 | N19: 2.5 | O19: 851 | P19: 6 | Q19: 53
B24: Sample | C24: Million Years
B25: 1 | C25: 4043.613603
B26: 2 | C26: 7535.062418
B27: 3 | C27: 3220.787587
B28: 4 | C28: 5931.621158
B29: 5 | C29: 3265.526091
B30: 6 | C30: 9358.045627
B31: 7 | C31: 3458.03013
B32: 8 | C32: 4243.973296
B33: 9 | C33: 3047.526668
B34: 10 | C34: 3071.661046
B35: 11 | C35: 3731.080592
B36: 12 | C36: 4026.94009
B37: 13 | C37: 5360.988681
B38: 14 | C38: 2797.401567
B39: 15 | C39: 3199.787424
B40: 16 | C40: 3602.243
B41: 17 | C41: 3080.032758
B42: 18 | C42: 3174.001353

Sheet Sheet2

Sheet Sheet3
